bitfinex/quotes_ETHUSD_20241120
["timestamp","ask_amount","ask_price","bid_price","bid_amount"]
[1732135701821,3.24801,3078.8,3077.8,3.249]
[1732135701822,3.2487,3078.2,3077.8,0.8283]
[1732135702160,2.97240284,3078.6,3077.8,0.8283]
[1732135702161,3.24844,3078.4,3077.8,3.24897]
[1732135702364,3.24838,3078.5,3078.0,3.2488]
[1732135702561,3.24817,3078.7,3078.0,3.24876]
[1732135702716,6.22038284,3078.9,3078.3,3.24848]
[1732135702921,3.24812,3078.7,3078.2,0.8283]
[1732135703253,2.97240284,3078.9,3077.8,4.0773]
[1732135703254,3.24849,3078.4,3077.8,4.0773]
[1732135703675,3.24825,3078.6,3078.1,3.24873]
[1732135703882,3.24825,3078.6,3077.8,7.32634]
[1732135703883,3.24849,3078.4,3077.8,7.32634]
[1732135704051,3.24849,3078.4,3077.8,4.07731]
[1732135704248,3.24849,3078.4,3077.8,4.0773]
[1732135704495,3.24826,3078.6,3078.1,3.24875]
[1732135704662,3.24765,3079.2,3077.9,0.8283]
[1732135704663,3.24781,3079.0,3077.9,0.8283]
[1732135704857,2.97240284,3079.2,3078.2,3.24859]
[1732135705061,3.2478,3079.0,3078.2,6.49713]
[1732135705387,3.24808,3078.8,3078.2,3.24854]
[1732135705595,6.49618,3078.8,3078.2,3.24854]
[1732135705776,0.62202028,3079.0,3078.0,3.24881]
[1732135705777,2.97240284,3078.9,3078.0,3.24881]
[1732135706092,3.24815,3078.7,3078.2,3.24862]
[1732135706515,3.24815,3078.7,3078.0,3.24881]
[1732135706657,2.97240284,3078.9,3077.9,0.8283]
[1732135706853,3.24838,3078.5,3077.9,0.8283]
[1732135707227,3.24865,3078.2,3077.7,0.8246]
[1732135707496,3.24865,3078.2,3077.5,4.07392]
[1732135707497,3.24884,3078.1,3077.5,4.07392]
[1732135707854,3.24866,3078.2,3077.7,3.24917]
[1732135708201,3.24858,3078.3,3077.8,3.24903]
[1732135708400,3.24871,3078.2,3077.6,6.905782]
[1732135708550,2.97240284,3078.6,3077.6,3.656572]
[1732135708551,3.24875,3078.1,3077.6,3.656572]
[1732135708952,3.2486,3078.3,3077.7,3.24917]
[1732135709188,3.24866,3078.2,3077.6,3.656572]
[1732135709398,3.26964312,3078.6,3077.6,3.656572]
[1732135709399,3.24875,3078.1,3077.6,3.656572]
[1732135709553,6.49759,3078.1,3077.6,3.24918]
[1732135709887,3.24875,3078.1,3077.6,3.24918]
[1732135710098,6.49759,3078.1,3077.5,0.8246]
[1732135710281,3.24875,3078.1,3077.5,1.556947]
[1732135710468,3.24859,3078.3,3077.6,3.24922]
[1732135710669,3.24859,3078.3,3077.5,1.556947]
[1732135710670,3.24868,3078.2,3077.7,3.24917]
[1732135711049,3.24892,3078.0,3077.5,0.8246]
[1732135711253,6.22067284,3078.6,3077.2,0.8246]
[1732135711254,3.24919,3077.7,3077.2,0.8246]
[1732135711500,3.24919,3077.7,3077.1,3.39723402]
[1732135711501,3.24935,3077.6,3077.1,0.14744402]
[1732135711653,3.2494,3077.5,3077.1,0.14744402]
[1732135711848,3.24919,3077.7,3077.1,3.39716402]
[1732135712050,6.49785,3078.0,3077.1,0.89461742]
[1732135712318,3.24917,3077.7,3077.2,3.2497]
[1732135712595,3.24917,3077.7,3077.1,0.14744402]
[1732135712596,6.49842,3077.7,3077.1,0.14744402]
[1732135712765,3.24917,3077.7,3077.1,3.81934842]
[1732135713092,3.24902,3077.9,3077.1,3.81934842]
[1732135713396,0.02,3078.6,3077.1,3.81934842]
[1732135713397,3.0,3078.7,3077.3,0.8246]
[1732135713559,3.24891,3078.0,3077.3,0.8246]
[1732135713889,3.24891,3078.0,3077.5,3.24937]
[1732135714097,3.2487,3078.2,3077.5,3.24937]
[1732135714314,3.2487,3078.2,3077.6,3.574217]
[1732135714602,3.24822,3078.6,3077.6,0.324937]
[1732135714603,3.24885,3078.1,3077.6,0.324937]
[1732135714809,3.24885,3078.1,3077.6,3.574187]
[1732135714953,3.24885,3078.1,3077.7,0.3574187]
[1732135715565,2.97240284,3078.4,3077.2,1.25709484]
[1732135715754,2.97240284,3078.4,3077.3,3.2495]
[1732135715755,3.24909,3077.8,3077.3,3.2495]
[1732135716368,3.24909,3077.8,3077.3,3.9934394]
[1732135716953,6.49824,3077.8,3077.3,3.9934394]
[1732135717153,3.24909,3077.8,3077.3,3.9934394]
[1732135717593,3.24886,3078.0,3077.2,0.7927]
[1732135717799,3.24937,3077.6,3077.1,3.39724402]
[1732135718090,3.24937,3077.6,3077.1,4.13942442]
[1732135718317,2.97240284,3078.1,3077.1,4.13942442]
[1732135718318,3.24908,3077.8,3077.1,4.13934442]
[1732135718508,3.24908,3077.8,3077.1,3.39716402]
[1732135718509,3.24923,3077.7,3077.1,3.39716402]
[1732135718658,3.24908,3077.8,3077.3,3.24956]
[1732135718858,3.24889,3078.0,3077.4,3.24939]
[1732135719095,3.0,3078.3,3077.5,4.06018]
[1732135719096,3.24871,3078.2,3077.5,4.06018]
[1732135719305,3.24871,3078.2,3077.5,0.8108]
[1732135719306,3.24887,3078.0,3077.5,0.8108]
[1732135719713,6.49781,3078.0,3077.5,0.8108]
[1732135720004,3.24908,3077.8,3077.5,0.8108]
[1732135720364,3.24908,3077.8,3077.2,0.7862]
[1732135720365,3.24929,3077.6,3077.2,0.7862]
[1732135720563,3.24925,3077.7,3077.2,4.0359]
[1732135720787,3.2493,3077.6,3077.2,0.7862]
[1732135721174,3.24918,3077.7,3077.2,4.03589]
[1732135721375,3.24892,3078.0,3077.2,1.5295174]
[1732135721575,3.0,3078.3,3077.2,1.5295174]
[1732135721576,3.24882,3078.1,3077.2,0.7862]
[1732135721901,3.24882,3078.1,3077.5,3.24933]
[1732135722469,3.24886,3078.0,3077.5,3.24933]
[1732135722669,3.24873,3078.2,3077.6,3.24925]
[1732135722901,3.24873,3078.2,3077.7,0.8289]
[1732135723220,3.24847,3078.4,3077.8,3.24901]
[1732135723666,3.24847,3078.4,3077.9,3.24896]
[1732135723868,6.49637,3078.7,3078.1,3.24873]
[1732135724187,3.24823,3078.6,3078.1,3.24873]
[1732135724514,3.24823,3078.6,3077.9,3.24891]
[1732135724515,3.897867,3078.6,3077.9,3.24886]
[1732135724809,3.897867,3078.6,3078.1,3.24874]
[1732135724963,3.24836,3078.5,3077.9,6.49777]
[1732135725168,0.649637,3078.6,3078.1,3.24875]
[1732135725363,6.49637,3078.7,3078.0,3.24883]
[1732135725364,3.24834,3078.5,3078.0,3.24883]
[1732135725569,6.49677,3078.5,3077.9,3.24896]
[1732135725769,6.821604,3078.5,3077.9,3.24896]
[1732135726085,6.821604,3078.5,3077.7,0.8289]
[1732135726086,2.97240284,3078.4,3077.7,0.8289]
[1732135726285,3.24865,3078.2,3077.6,3.24922]
[1732135726604,3.24865,3078.2,3077.5,4.02115]
[1732135726605,3.24849,3078.4,3077.8,3.24902]
[1732135727210,3.24828,3078.6,3077.9,3.24896]
[1732135727211,3.24843,3078.5,3077.9,3.24896]
[1732135727416,3.24831,3078.6,3078.1,3.24874]
[1732135727417,0.62206828,3078.6,3078.1,3.24874]
[1732135727576,3.24833,3078.5,3078.0,0.7535]
[1732135727895,3.24796,3078.9,3078.1,3.24875]
[1732135728080,0.36828391,3079.6,3078.6,3.24819]
[1732135728081,3.34068675,3079.6,3078.6,3.24819]
[1732135728281,3.24767,3079.2,3078.6,3.24816]
[1732135728516,3.24767,3079.2,3078.5,4.00175]
[1732135728810,0.33406868,3079.5,3078.5,4.00175]
[1732135729017,3.24696,3079.8,3078.5,0.7535]
[1732135729222,3.24696,3079.8,3078.7,0.8238]
[1732135729430,3.24718,3079.6,3079.1,3.24765]
[1732135729673,0.73569192,3080.4,3078.8,2.97240284]
[1732135729786,0.52232463,3080.4,3079.3,0.8238]
[1732135729986,3.24645,3080.3,3079.7,3.24698]
[1732135730212,4.76140152,3080.5,3079.8,3.24695]
[1732135730486,4.76140152,3080.5,3079.7,6.49395]
[1732135730487,3.72249015,3080.4,3079.7,6.49395]
[1732135730713,3.72249015,3080.4,3079.7,3.24697]
[1732135730915,3.72249015,3080.4,3079.7,6.49397]
[1732135731135,0.52376417,3080.3,3079.8,3.24695]
[1732135731334,0.52376417,3080.3,3079.3,0.8238]
[1732135731335,3.24711,3079.7,3079.1,3.24766]
[1732135731626,3.24711,3079.7,3078.9,4.07168]
[1732135731627,3.2472,3079.6,3078.9,4.07168]
[1732135731843,3.2472,3079.6,3077.9,2.99240284]
[1732135731844,3.24762,3079.2,3078.6,4.07197]
[1732135732425,6.22002284,3079.2,3078.6,0.8238]
[1732135732596,2.97240284,3079.2,3078.6,0.8238]
[1732135732798,2.97240284,3079.2,3077.5,2.99240284]
[1732135732799,3.2477,3079.1,3078.3,3.24847]
[1732135733196,3.2477,3079.1,3078.5,3.2483]
[1732135733402,6.49509,3079.3,3078.6,3.24821]
[1732135733714,3.24784,3079.0,3078.3,3.24849]
[1732135733912,3.24764,3079.2,3078.2,0.8238]
[1732135734124,0.324753,3079.3,3078.5,3.24833]
[1732135734125,3.24778,3079.1,3078.5,3.24833]
[1732135734789,3.24778,3079.1,3078.4,3.24841]
[1732135735191,3.24752,3079.3,3078.6,3.24821]
[1732135735387,3.24763,3079.2,3078.6,3.24821]
[1732135735700,3.2477,3079.1,3078.6,3.24821]
[1732135736039,0.324752,3079.3,3078.6,3.24814]
[1732135736187,6.49467,3079.5,3078.9,0.8111]
[1732135736188,3.24731,3079.5,3078.9,0.8111]
[1732135736590,3.24731,3079.5,3078.9,4.059]
[1732135736927,3.24755,3079.3,3078.9,0.8111]
[1732135737440,3.24761,3079.2,3078.9,0.8111]
[1732135737729,3.93652735,3079.4,3078.9,0.8111]
[1732135738040,0.71838574,3079.3,3078.9,0.8111]
[1732135738836,0.71838574,3079.3,3079.0,3.2478]
[1732135739008,0.68908735,3079.4,3079.0,3.2478]
[1732135739527,0.68908735,3079.4,3078.9,4.05899]
[1732135739731,3.2475,3079.3,3078.9,0.8111]
[1732135740030,0.39365874,3079.2,3078.9,0.8111]
[1732135740340,3.24771,3079.1,3078.5,4.0077]
[1732135740505,0.39365874,3079.2,3078.6,3.2482]
[1732135740724,0.39365874,3079.2,3078.5,0.7594]
[1732135740725,3.24798,3078.9,3078.5,0.7594]
[1732135741029,3.24775,3079.1,3078.5,0.7594]
[1732135741232,3.24802,3078.8,3078.2,0.7594]
[1732135741445,0.324802,3078.7,3078.3,3.24849]
[1732135741598,3.24813,3078.7,3078.2,0.7594]
[1732135742093,3.24813,3078.7,3078.2,4.00803]
[1732135742437,3.24792,3078.9,3078.2,4.00799]
[1732135742438,3.24801,3078.8,3078.2,4.00799]
[1732135742592,3.24808,3078.8,3078.2,0.7594]
[1732135742794,3.89781,3078.7,3078.2,0.7594]
[1732135742992,3.24841,3078.5,3078.2,0.7594]
[1732135743191,3.24849,3078.4,3077.7,3.24914]
[1732135743497,6.24752,3079.3,3077.9,0.7908]
[1732135743498,3.24864,3078.3,3077.9,0.7908]
[1732135743890,3.6435635,3078.8,3077.9,0.7908]
[1732135743891,6.8915835,3078.8,3077.9,0.7908]
[1732135744088,3.24864,3078.3,3077.9,0.7908]
[1732135744293,3.24872,3078.2,3077.9,0.7908]
[1732135745976,3.24848,3078.4,3077.9,0.7908]
[1732135746129,3.24872,3078.2,3077.9,0.7908]
[1732135746482,3.24872,3078.2,3077.6,3.24923]
[1732135746483,3.24914,3077.8,3077.6,0.7628]
[1732135746644,3.9684115,3078.4,3077.6,0.7628]
[1732135746645,3.24897,3077.9,3077.6,0.7628]
[1732135746967,3.2489,3078.0,3077.6,0.7628]
[1732135747175,3.24865,3078.2,3077.6,0.7628]
[1732135747334,3.24888,3078.0,3077.6,0.7628]
[1732135747669,0.68920235,3078.3,3077.6,0.7628]
[1732135747878,0.68920235,3078.3,3077.1,3.39724402]
[1732135747879,3.24917,3077.7,3077.2,0.7709]
[1732135748081,3.24886,3078.0,3077.4,3.24945]
[1732135748225,3.2488,3078.1,3077.5,3.24933]
[1732135748430,3.24855,3078.3,3077.6,4.02011]
[1732135748640,3.24878,3078.1,3077.6,4.02011]
[1732135748868,3.24917,3077.8,3077.6,0.7709]
[1732135749481,3.24892,3078.0,3077.6,0.7709]
[1732135749674,3.24908,3077.8,3077.6,0.7709]
[1732135750546,3.6435635,3078.4,3077.6,0.7709]
[1732135750756,3.24897,3077.9,3077.6,0.7709]
[1732135751206,3.24883,3078.1,3077.6,0.7709]
[1732135751372,3.24899,3077.9,3077.6,0.7709]
[1732135751573,3.2491,3077.8,3077.6,0.7709]
[1732135751972,3.2491,3077.8,3077.1,0.93694402]
[1732135751973,0.32491,3077.8,3077.1,0.93694402]
[1732135752277,3.2497,3077.2,3077.1,0.14744402]
[1732135753368,6.8932635,3077.2,3077.1,0.14744402]
[1732135753679,3.2497,3077.2,3077.1,0.14744402]
[1732135754270,6.8932635,3077.2,3077.1,0.14744402]
[1732135754513,7.94437824,3077.2,3077.1,0.14744402]
[1732135754710,7.26490101,3077.2,3077.1,0.14744402]
[1732135756418,10.26490101,3077.2,3077.1,0.14744402]
[1732135758454,3.2497,3077.2,3077.1,0.14744402]
[1732135759347,3.2496,3077.3,3077.1,0.14744402]
[1732135759866,3.2497,3077.2,3077.1,0.14744402]
[1732135760617,6.21378627,3077.2,3077.1,0.14744402]
[1732135762774,3.2497,3077.2,3077.1,0.14744402]
[1732135763321,3.89963,3077.2,3077.1,0.14744402]
[1732135763745,6.86371627,3077.2,3077.1,0.14744402]
[1732135765555,3.89963,3077.2,3077.1,0.14744402]
[1732135767586,6.86371627,3077.2,3077.1,0.14744402]
[1732135769992,3.89963,3077.2,3077.1,0.14744402]
[1732135770145,3.2497,3077.2,3077.1,0.14744402]
[1732135771214,3.2496,3077.3,3077.1,0.14744402]
[1732135771352,3.2497,3077.2,3077.1,0.14744402]
[1732135772572,3.24957,3077.4,3077.1,0.14744402]
[1732135772788,3.24945,3077.5,3077.1,0.14744402]
[1732135773121,3.24945,3077.5,3077.1,0.56650842]
[1732135773754,6.4989,3077.5,3077.1,0.56650842]
[1732135773951,3.24945,3077.5,3077.1,0.14744402]
[1732135774157,3.24961,3077.3,3077.1,0.14744402]
[1732135774456,9.35408627,3077.8,3077.1,0.14744402]
[1732135774457,3.2497,3077.2,3077.1,0.14744402]
[1732135776002,3.2496,3077.3,3077.1,0.14744402]
[1732135776207,3.24944,3077.5,3077.1,0.14744402]
[1732135776790,3.2497,3077.2,3077.1,0.14744402]
[1732135777301,2.96408627,3077.5,3077.1,0.14744402]
[1732135777302,6.21352627,3077.5,3077.1,0.14744402]
[1732135777611,3.2495,3077.4,3077.2,0.7932]
[1732135778160,3.24935,3077.6,3077.2,0.7932]
[1732135778359,3.24917,3077.7,3077.2,0.7932]
[1732135778611,5.96408627,3078.1,3077.3,3.24954]
[1732135778946,3.24903,3077.9,3077.4,0.7629]
[1732135779445,3.24886,3078.0,3077.4,0.7629]
[1732135779662,3.24886,3078.0,3077.5,3.24933]
[1732135779947,3.24875,3078.2,3077.3,3.24959]
[1732135779948,3.24876,3078.1,3077.6,4.01213]
[1732135780153,3.24876,3078.1,3077.6,4.413343]
[1732135780757,3.24849,3078.4,3077.7,3.24917]
[1732135781047,3.24831,3078.6,3077.9,4.0118]
[1732135781264,2.96408627,3079.0,3078.1,0.7629]
[1732135781430,3.24854,3078.4,3078.1,0.7629]
[1732135781751,3.898216,3078.4,3078.1,0.7629]
[1732135781920,3.24854,3078.4,3078.1,0.7629]
[1732135782334,6.49705,3078.4,3078.1,0.7629]
[1732135782522,3.24852,3078.4,3078.1,0.7629]
[1732135782847,2.96408627,3078.7,3078.1,0.7629]
[1732135782848,3.24865,3078.2,3078.1,0.7629]
[1732135783207,3.24855,3078.3,3078.1,0.7629]
[1732135784845,2.96408627,3078.7,3078.1,0.7629]
[1732135785047,3.24829,3078.6,3078.1,4.01164]
[1732135785546,3.24821,3078.7,3078.1,0.7629]
[1732135785754,3.24835,3078.5,3078.1,0.7629]
[1732135785950,3.24824,3078.6,3078.1,0.7629]
[1732135786390,3.24833,3078.5,3078.1,0.7629]
[1732135787392,3.24865,3078.2,3078.1,0.7629]
[1732135787692,6.49717,3078.3,3078.1,0.7629]
[1732135787857,3.24865,3078.2,3078.1,0.7629]
[1732135789599,3.24875,3078.1,3077.7,0.7728]
[1732135790363,2.96408627,3078.4,3077.7,0.7728]
[1732135790562,3.24919,3077.7,3077.4,0.7987]
[1732135791064,3.24939,3077.5,3077.4,0.7987]
[1732135791375,3.24934,3077.6,3077.4,0.7987]
[1732135791574,2.96408627,3078.1,3077.4,0.7987]
[1732135791771,3.24921,3077.7,3077.4,0.7987]
[1732135792406,3.24939,3077.5,3077.4,0.7987]
[1732135793262,2.96408627,3077.8,3077.1,0.96194402]
[1732135793501,6.21378627,3077.2,3077.1,0.14744402]
[1732135793747,6.65557772,3077.2,3077.1,0.14744402]
[1732135794100,3.2497,3077.2,3077.1,0.14744402]
[1732135796548,6.65557772,3077.2,3077.1,0.14744402]
[1732135796842,7.97105549,3077.2,3077.1,0.14744402]
[1732135797398,3.69149145,3077.2,3077.1,0.14744402]
[1732135798815,6.65557772,3077.2,3077.1,0.14744402]
[1732135799818,7.20557772,3077.2,3077.1,0.14744402]
[1732135800343,4.35919946,3077.2,3077.1,0.03157317]
[1732135800504,3.2497,3077.2,3077.1,0.03157317]
[1732135800700,3.2496,3077.4,3077.1,0.03157317]
[1732135801020,3.24907,3077.8,3077.2,3.24964]
[1732135801279,2.96408627,3078.3,3077.4,0.7554]
[1732135801280,3.24865,3078.2,3077.4,0.7554]
[1732135801459,3.24925,3077.7,3077.4,0.7554]
[1732135801657,2.96408627,3078.3,3077.4,0.7554]
[1732135801658,3.24901,3077.9,3077.4,0.7554]
[1732135801856,3.24893,3078.0,3077.4,0.7554]
[1732135802302,3.24833,3078.5,3077.4,0.7554]
[1732135802509,3.24903,3077.9,3077.4,0.7554]
[1732135803155,0.75260362,3078.5,3077.4,0.7554]
[1732135803156,2.96408627,3078.0,3077.4,0.7554]
[1732135803359,3.24939,3077.5,3077.1,0.80837317]
[1732135803610,3.24923,3077.7,3077.1,0.80837317]
[1732135803895,3.24923,3077.7,3077.2,3.24968]
[1732135804100,0.36740801,3078.2,3077.4,3.24942]
[1732135804101,3.0,3078.0,3077.4,3.24942]
[1732135804399,3.0,3078.0,3077.6,0.7535]
[1732135804609,3.0,3078.3,3077.8,3.24904]
[1732135804903,3.0,3078.3,3077.7,3.24915]
[1732135804904,3.96203084,3078.3,3077.7,3.24915]
[1732135805109,0.96203084,3078.3,3077.7,3.24915]
[1732135805398,3.2484,3078.5,3077.9,3.24895]
[1732135805582,3.24846,3078.4,3077.9,3.24895]
[1732135805962,1.29271743,3078.5,3077.9,3.2489]
[1732135806280,4.54104743,3078.5,3077.9,3.2489]
[1732135806588,4.54104743,3078.5,3077.8,0.7947]
[1732135806589,1.29271743,3078.5,3077.8,0.7947]
[1732135806758,1.29271743,3078.5,3078.0,3.24886]
[1732135806954,1.29271743,3078.5,3078.2,3.24863]
[1732135807158,1.29271743,3078.5,3078.0,3.24886]
[1732135807411,1.29271743,3078.5,3077.8,0.7947]
[1732135807698,3.24893,3078.0,3077.5,0.7512]
[1732135807900,0.36740801,3078.4,3077.5,0.7512]
[1732135807901,3.24918,3077.7,3077.5,0.7512]
[1732135808124,4.00107362,3078.4,3077.2,0.7512]
[1732135808125,3.24886,3078.0,3077.2,0.7512]
[1732135808398,7.19368266,3078.2,3077.1,0.03157317]
[1732135808399,3.24946,3077.5,3077.1,0.03157317]
[1732135808588,0.324946,3077.4,3077.1,0.03157317]
[1732135808959,6.24898,3077.9,3077.1,3.28137317]
[1732135809162,3.0,3077.9,3077.3,3.2495]
[1732135809412,3.0,3078.3,3077.3,3.2495]
[1732135809590,3.0,3077.9,3077.4,3.24948]
[1732135810271,3.24869,3078.2,3077.2,0.7512]
[1732135810272,3.2487,3078.2,3077.2,0.7512]
[1732135810476,0.64542321,3078.1,3077.2,0.7512]
[1732135810701,0.64542321,3078.1,3077.2,4.00082]
[1732135810702,3.24911,3077.8,3077.2,4.00082]
[1732135811009,3.24891,3078.0,3077.2,4.00082]
[1732135811010,6.49784,3078.0,3077.3,3.24958]
[1732135811158,3.24891,3078.0,3077.4,3.24945]
[1732135811696,3.24868,3078.2,3077.6,3.24921]
[1732135811899,3.24847,3078.4,3077.6,3.24921]
[1732135811900,3.24847,3078.4,3077.7,0.8086]
[1732135812103,3.24868,3078.2,3077.7,0.8086]
[1732135812303,6.49699,3078.4,3077.7,4.05776]
[1732135812602,3.24865,3078.2,3077.7,4.05777]
[1732135812757,0.45411874,3078.3,3077.8,3.24898]
[1732135813121,3.24855,3078.3,3077.8,3.24898]
[1732135813402,6.39,3078.7,3077.3,3.24953]
[1732135813403,3.24814,3078.7,3078.2,3.24864]
[1732135813725,3.24835,3078.5,3078.0,0.814]
[1732135813860,0.324814,3078.6,3078.2,3.24864]
[1732135814064,3.24794,3078.9,3078.3,3.24852]
[1732135814414,3.24812,3078.7,3078.1,3.24868]
[1732135814565,0.649606,3078.7,3078.2,3.24864]
[1732135814760,0.649606,3078.7,3078.0,0.814]
[1732135814989,3.24855,3078.3,3078.0,0.814]
[1732135815505,6.49676,3078.5,3078.0,0.814]
[1732135815668,3.24834,3078.5,3078.0,0.814]
[1732135815874,3.24802,3078.8,3078.0,4.06281]
[1732135816184,3.24802,3078.8,3077.7,3.24914]
[1732135816185,3.24781,3079.0,3078.5,0.7992]
[1732135816425,3.24798,3078.9,3078.5,0.7992]
[1732135816933,0.3367408,3079.1,3078.5,0.7992]
[1732135816934,3.2481,3078.8,3078.5,0.7992]
[1732135817105,0.32481,3078.7,3078.5,0.7992]
[1732135817304,3.24802,3078.8,3078.5,0.7992]
[1732135817522,3.24822,3078.6,3078.5,0.7992]
[1732135817925,3.24822,3078.6,3078.0,3.24885]
[1732135818089,0.324822,3078.5,3078.0,3.24884]
[1732135818614,0.324822,3078.5,3077.9,4.07274]
[1732135818615,0.324822,3078.5,3077.9,0.8238]
[1732135818821,3.573162,3078.5,3077.9,0.8238]
[1732135819004,3.573162,3078.5,3077.9,4.07269]
[1732135819332,3.24851,3078.4,3077.9,4.07269]
[1732135819634,3.24886,3078.1,3077.9,0.8238]
[1732135819832,3.24892,3078.0,3077.4,0.8238]
[1732135820073,3.24903,3077.9,3077.4,4.07328]
[1732135820190,0.324903,3077.8,3077.4,4.07328]
[1732135820546,3.24887,3078.0,3077.4,4.07328]
[1732135821430,0.36740801,3078.6,3077.4,0.8238]
[1732135821431,3.24904,3077.9,3077.4,0.8238]
[1732135821740,0.324904,3077.8,3077.4,0.8238]
[1732135822044,6.4981,3077.9,3077.4,0.8238]
[1732135822264,3.24908,3077.8,3077.4,0.8238]
[1732135822743,3.36740801,3078.6,3077.4,0.8238]
[1732135823041,3.24927,3077.7,3077.4,0.8238]
[1732135823643,3.24939,3077.5,3077.1,0.85467317]
[1732135823867,3.24955,3077.4,3077.1,0.85467317]
[1732135824173,3.2497,3077.2,3077.1,0.85467317]
[1732135824341,3.2497,3077.2,3077.1,0.03157317]
[1732135826957,6.2497,3077.2,3077.1,0.03157317]
[1732135829197,3.2497,3077.2,3077.1,0.03157317]
[1732135829904,3.24957,3077.4,3077.1,0.03157317]
[1732135830043,3.2493,3077.6,3077.1,0.03157317]
[1732135830388,3.24926,3077.7,3077.1,0.03157317]
[1732135830588,3.24926,3077.7,3077.2,4.0518]
[1732135830747,3.24915,3077.8,3077.2,0.8021]
[1732135831082,3.24921,3077.7,3077.2,0.8021]
[1732135831285,3.24944,3077.5,3077.2,0.8021]
[1732135831512,3.24921,3077.7,3077.2,0.8021]
[1732135832278,3.24879,3078.1,3077.3,0.8261]
[1732135832516,3.24896,3078.0,3077.3,4.07562]
[1732135832816,7.27840689,3079.0,3077.3,4.07562]
[1732135832817,3.24847,3078.4,3077.8,3.24904]
[1732135832975,0.38519561,3079.0,3077.9,0.8122]
[1732135832976,3.24836,3078.5,3077.9,0.8122]
[1732135833178,6.49718,3078.3,3077.9,0.8122]
[1732135833376,0.324836,3078.5,3077.9,0.8122]
[1732135833691,0.324836,3078.5,3077.1,0.03157317]
[1732135833692,3.24916,3077.8,3077.6,0.8122]
[1732135833894,3.63366561,3078.4,3077.2,0.773]
[1732135833895,3.24917,3077.7,3077.2,0.773]
[1732135834313,3.24938,3077.6,3077.2,0.773]
[1732135834482,3.24917,3077.7,3077.2,0.773]
[1732135834917,3.24918,3077.7,3077.2,0.773]
[1732135835405,3.24944,3077.5,3077.2,0.773]
[1732135835828,3.2492,3077.7,3077.2,0.773]
[1732135836136,3.2488,3078.1,3077.2,0.773]
[1732135836288,3.2488,3078.1,3077.1,0.06406884]
[1732135836289,3.24858,3078.3,3077.6,3.24927]
[1732135836498,3.24867,3078.2,3077.7,0.8141]
[1732135836824,0.3,3078.4,3077.7,0.8141]
[1732135836825,3.24888,3078.0,3077.7,0.8141]
[1732135837177,3.24873,3078.2,3077.7,4.06325]
[1732135837376,3.24873,3078.2,3077.7,0.8141]
[1732135837591,3.24898,3077.9,3077.7,0.8141]
[1732135837802,3.24892,3078.0,3077.7,0.8141]
[1732135838210,3.24899,3077.9,3077.7,0.8141]
[1732135838416,3.24907,3077.8,3077.7,0.8141]
[1732135838597,3.24892,3078.0,3077.5,3.24938]
[1732135839008,3.24865,3078.2,3077.6,3.24927]
[1732135839207,3.24865,3078.2,3077.4,4.00652]
[1732135839417,3.24894,3078.0,3077.4,0.7571]
[1732135839719,3.24869,3078.2,3077.5,3.24929]
[1732135839890,3.24882,3078.1,3077.5,3.24929]
[1732135840096,6.49744,3078.2,3077.6,3.24927]
[1732135840294,3.24886,3078.0,3077.4,4.00651]
[1732135840523,3.24886,3078.0,3077.4,0.7571]
[1732135840524,6.49781,3078.0,3077.4,0.7571]
[1732135840730,3.24916,3077.8,3077.4,0.7571]
[1732135840930,3.24912,3077.8,3077.4,0.7571]
[1732135841224,3.64538128,3078.6,3077.4,4.00652]
[1732135841225,3.24894,3078.0,3077.4,4.00652]
[1732135841380,0.324894,3077.9,3077.4,0.7571]
[1732135841583,3.24914,3077.8,3077.4,0.7571]
[1732135841878,3.24894,3078.0,3077.4,4.00649]
[1732135842106,3.24892,3078.0,3077.4,0.7571]
[1732135842306,3.24888,3078.0,3077.4,4.00649]
[1732135842492,3.24907,3077.8,3077.4,0.7571]
[1732135842980,3.24886,3078.0,3077.4,4.00659]
[1732135843182,6.49781,3078.0,3077.4,4.00659]
[1732135843416,3.24886,3078.0,3077.4,0.7571]
[1732135843619,3.24886,3078.0,3077.4,4.00652]
[1732135843921,3.24899,3077.9,3077.4,0.7571]
[1732135844586,3.24899,3077.9,3077.4,4.00657]
[1732135845215,3.24886,3078.0,3077.4,4.34832784]
[1732135845422,3.24886,3078.0,3077.4,4.00657]
[1732135846232,3.24913,3077.8,3077.4,0.7571]
[1732135846474,3.248,3078.9,3077.4,4.00649]
[1732135846634,3.24902,3077.9,3077.4,0.7571]
[1732135847291,0.55,3078.7,3077.4,0.7571]
[1732135847292,3.2492,3077.7,3077.4,0.7571]
[1732135847716,3.24934,3077.6,3077.4,0.7571]
[1732135847913,3.24939,3077.5,3077.4,0.7571]
[1732135848416,3.2492,3077.7,3077.4,0.7571]
[1732135848621,3.24913,3077.8,3077.4,0.7571]
[1732135848942,3.24902,3077.9,3077.4,0.7571]
[1732135849100,3.2492,3077.7,3077.4,0.7571]
[1732135850100,3.24901,3077.9,3077.4,0.7571]
[1732135850301,3.24909,3077.8,3077.4,0.7571]
[1732135850934,3.24898,3077.9,3077.4,4.00655]
[1732135851089,3.24864,3078.3,3077.5,3.24935]
[1732135851293,3.24887,3078.0,3077.5,3.24938]
[1732135851553,3.24871,3078.2,3077.6,3.2492]
[1732135851711,3.24864,3078.3,3077.6,4.731758]
[1732135851915,3.24854,3078.3,3077.8,0.8327]
[1732135852216,3.24854,3078.3,3077.8,4.08176]
[1732135852438,6.49717,3078.3,3077.8,0.8327]
[1732135852622,3.24854,3078.3,3077.8,0.8327]
[1732135853231,3.24865,3078.2,3077.8,0.8327]
[1732135853660,3.24854,3078.3,3077.8,0.8327]